bitfinex/quotes_BTCUSD_20251212
["timestamp","ask_amount","ask_price","bid_price","bid_amount"]
[1765563472054,0.01104752,90518.0,90512.0,0.01756]
[1765563472276,0.01104777,90516.0,90512.0,0.02860825]
[1765563472662,0.01104752,90518.0,90514.0,0.01104801]
[1765563472867,0.03348,90513.0,90510.0,0.0110485]
[1765563473072,0.03348,90513.0,90497.0,0.0432]
[1765563473073,0.22097249,90509.0,90502.0,0.01104947]
[1765563473281,0.26549618,90511.0,90503.0,0.02860935]
[1765563473554,0.02566,90508.0,90505.0,0.01104911]
[1765563474345,0.06485777,90516.0,90510.0,0.0110485]
[1765563474561,0.03348,90511.0,90508.0,0.01104874]
[1765563474766,0.03348,90511.0,90510.0,0.22097005]
[1765563474978,0.03348,90511.0,90508.0,0.23202142]
[1765563475186,0.0125494,90515.0,90511.0,0.01104838]
[1765563475429,0.01104813,90513.0,90508.0,0.23202142]
[1765563475629,0.01204874,90508.0,90505.0,0.00011584]
[1765563475838,0.25445982,90506.0,90505.0,0.00011584]
[1765563476380,0.00150151,90506.0,90505.0,0.00011584]
[1765563476536,0.03498151,90506.0,90505.0,0.00011584]
[1765563476738,0.00150151,90506.0,90505.0,0.00011584]
[1765563476940,0.002,90515.0,90511.0,0.01104838]
[1765563477181,0.002,90515.0,90513.0,0.22096268]
[1765563477399,0.05481,90515.0,90512.0,0.01104825]
[1765563477751,0.01304789,90515.0,90511.0,0.01104838]
[1765563477966,0.01304789,90515.0,90508.0,0.01104874]
[1765563477967,0.01104801,90514.0,90508.0,0.01104874]
[1765563478188,0.01104801,90514.0,90509.0,0.01104862]
[1765563478405,0.001,90515.0,90512.0,0.01104825]
[1765563478834,0.05381,90515.0,90512.0,0.01104825]
[1765563479268,0.03348,90513.0,90512.0,0.01104825]
[1765563479467,0.05381,90515.0,90512.0,0.23201103]
[1765563479468,0.05281,90515.0,90512.0,0.23201103]
[1765563479919,0.22097005,90510.0,90503.0,0.01104935]
[1765563480117,0.01104862,90509.0,90506.0,0.01756]
[1765563480332,0.22097982,90506.0,90505.0,0.01767584]
[1765563480537,0.30877133,90506.0,90505.0,0.00011584]
[1765563480763,0.30877133,90506.0,90478.0,0.30175241]
[1765563480764,0.01105155,90485.0,90480.0,0.01105216]
[1765563480966,0.01105106,90489.0,90483.0,0.01105179]
[1765563481186,0.06385911,90505.0,90497.0,0.01105009]
[1765563481404,0.06385911,90505.0,90479.0,0.01756]
[1765563481405,0.23204419,90500.0,90491.0,0.01105082]
[1765563481596,0.03348,90497.0,90494.0,0.01105045]
[1765563481810,0.00150151,90500.0,90498.0,0.22099935]
[1765563482011,0.0120485,90510.0,90504.0,0.2209847]
[1765563482012,0.001,90510.0,90504.0,0.2209847]
[1765563482445,0.01104838,90511.0,90504.0,0.2209847]
[1765563482652,0.02566,90509.0,90504.0,0.2209847]
[1765563482852,0.03670862,90509.0,90504.0,0.2209847]
[1765563483057,0.02566,90509.0,90504.0,0.2209847]
[1765563483235,0.01104886,90507.0,90502.0,0.23203714]
[1765563483435,0.02566,90509.0,90503.0,0.22098714]
[1765563483882,0.00674362,90511.0,90503.0,0.22098714]
[1765563484082,0.02566,90509.0,90503.0,0.22098714]
[1765563484452,0.00111571,90505.0,90503.0,0.22098714]
[1765563485071,0.00011571,90505.0,90503.0,0.22098714]
[1765563485429,0.00011571,90505.0,90504.0,0.0432]
[1765563485430,0.00111571,90505.0,90504.0,0.0432]
[1765563485919,0.00111571,90505.0,90504.0,0.3339]
[1765563486279,0.00011571,90505.0,90504.0,0.3339]
[1765563486868,0.00011571,90505.0,90504.0,0.3359]
[1765563487089,0.00011571,90505.0,90504.0,0.3339]
[1765563487597,0.00011571,90505.0,90504.0,0.3399]
[1765563488070,0.00011571,90505.0,90504.0,0.3379]
[1765563488416,0.00011571,90505.0,90504.0,0.3409]
[1765563488997,0.00011571,90505.0,90504.0,0.2977]
[1765563489189,0.00011571,90505.0,90504.0,0.31526]
[1765563489396,0.00011571,90505.0,90504.0,0.003]
[1765563489598,0.00011571,90505.0,90504.0,0.02056]
[1765563489734,0.00011571,90505.0,90504.0,0.06376]
[1765563489938,0.00011571,90505.0,90504.0,0.08585847]
[1765563490143,0.00011571,90505.0,90504.0,0.08885847]
[1765563490657,0.00011571,90505.0,90504.0,0.08585847]
[1765563490821,0.00011571,90505.0,90504.0,0.08485847]
[1765563491025,0.00011571,90505.0,90504.0,0.06276]
[1765563491842,0.00011571,90505.0,90504.0,0.01756]
[1765563492079,0.00011571,90505.0,90504.0,0.01856]
[1765563492643,0.00011571,90505.0,90504.0,0.02056]
[1765563493052,0.00011571,90505.0,90504.0,0.01856]
[1765563493325,0.00011571,90505.0,90504.0,0.06376]
[1765563493705,0.00011571,90505.0,90504.0,0.02056]
[1765563493924,0.00011571,90505.0,90504.0,0.06376]
[1765563495333,0.00011571,90505.0,90504.0,0.37655847]
[1765563495532,0.00011571,90505.0,90504.0,0.35446]
[1765563496508,0.00011571,90505.0,90504.0,0.41323988]
[1765563496960,0.00011571,90505.0,90504.0,0.46325827]
[1765563497177,0.00011571,90505.0,90504.0,0.40447839]
[1765563497346,1e-08,90505.0,90504.0,0.40447839]
[1765563497731,1e-08,90505.0,90504.0,0.40347839]
[1765563497935,1e-08,90505.0,90504.0,0.41122201]
[1765563498719,1e-08,90505.0,90504.0,0.38591839]
[1765563498924,1e-08,90505.0,90504.0,0.40147839]
[1765563499064,1e-08,90505.0,90504.0,0.40547839]
[1765563499939,1e-08,90505.0,90504.0,0.40847839]
[1765563500181,0.02468,90554.0,90541.0,0.2640944]
[1765563500182,0.04963,90553.0,90541.0,0.2640944]
[1765563500383,0.00062386,90542.0,90541.0,0.2816544]
[1765563500598,0.00062386,90542.0,90541.0,0.2384544]
[1765563500732,0.08247386,90542.0,90541.0,0.2384544]
[1765563501358,0.03440386,90542.0,90541.0,0.2816544]
[1765563501567,0.00062386,90542.0,90541.0,0.2816544]
[1765563501772,0.08247386,90542.0,90541.0,0.2384544]
[1765563502811,0.08247386,90542.0,90541.0,0.2394544]
[1765563503014,0.00062386,90542.0,90541.0,0.2394544]
[1765563503395,0.08247386,90542.0,90541.0,0.2394544]
[1765563504206,0.00062386,90542.0,90541.0,0.2394544]
[1765563504622,0.00062386,90542.0,90541.0,0.2826544]
[1765563505481,0.00062386,90542.0,90541.0,0.2816544]
[1765563505687,0.00062386,90542.0,90541.0,0.2836544]
[1765563505902,0.00062386,90542.0,90541.0,0.5743544]
[1765563506104,0.00062386,90542.0,90541.0,0.62237279]
[1765563506296,0.00062386,90542.0,90541.0,0.62637279]
[1765563506738,0.00062386,90542.0,90541.0,0.62537279]
[1765563507141,0.00062386,90542.0,90541.0,0.62737279]
[1765563507358,0.00062386,90542.0,90541.0,0.6862322]
[1765563507508,0.00062386,90542.0,90541.0,0.62537279]
[1765563507966,1e-08,90542.0,90541.0,0.62437279]
[1765563508194,1e-08,90542.0,90541.0,0.6832322]
[1765563508366,1e-08,90542.0,90541.0,0.62637279]
[1765563509157,1e-08,90542.0,90541.0,0.62437279]
[1765563509591,1e-08,90542.0,90541.0,0.62537279]
[1765563509982,1e-08,90542.0,90541.0,0.62737279]
[1765563510405,1e-08,90542.0,90541.0,0.63237279]
[1765563511040,1e-08,90542.0,90541.0,0.62737279]
[1765563511254,1e-08,90542.0,90541.0,0.62237279]
[1765563511463,1e-08,90542.0,90541.0,0.62737279]
[1765563511886,1e-08,90542.0,90541.0,0.62237279]
[1765563512096,1e-08,90542.0,90541.0,0.62737279]
[1765563512530,1e-08,90542.0,90541.0,0.63137279]
[1765563512983,1e-08,90560.0,90559.0,0.60476888]
[1765563513139,1e-08,90560.0,90559.0,0.68090706]
[1765563513340,1e-08,90560.0,90559.0,0.62232888]
[1765563514131,1e-08,90560.0,90559.0,0.62532888]
[1765563515111,1e-08,90560.0,90559.0,0.60776888]
[1765563515545,1e-08,90560.0,90559.0,0.62532888]
[1765563515757,1e-08,90560.0,90559.0,0.61176888]
[1765563516318,1e-08,90560.0,90559.0,0.62632888]
[1765563516738,1e-08,90560.0,90559.0,0.62932888]
[1765563517141,1e-08,90560.0,90559.0,0.62532888]
[1765563517350,1e-08,90560.0,90559.0,0.64227366]
[1765563517552,1e-08,90560.0,90559.0,0.64527366]
[1765563517776,1e-08,90560.0,90559.0,0.64227366]
[1765563518173,1e-08,90560.0,90559.0,0.64627366]
[1765563518358,1e-08,90560.0,90559.0,0.64327366]
[1765563518809,1e-08,90560.0,90559.0,0.70485184]
[1765563518939,1e-08,90560.0,90559.0,0.64627366]
[1765563519161,1e-08,90560.0,90559.0,0.70477233]
[1765563519735,1e-08,90560.0,90559.0,0.64627366]
[1765563522031,1e-08,90570.0,90569.0,0.55472611]
[1765563522240,1e-08,90570.0,90569.0,0.57228611]
[1765563523273,1e-08,90570.0,90569.0,0.57428611]
[1765563524298,1e-08,90570.0,90569.0,0.57728611]
[1765563524611,1e-08,90570.0,90569.0,0.57767174]
[1765563524750,1e-08,90570.0,90569.0,0.62769013]
[1765563527372,1e-08,90570.0,90569.0,0.68620792]
[1765563527575,1e-08,90570.0,90569.0,0.62769013]
[1765563527968,0.0002,90580.0,90569.0,0.62769013]
[1765563527969,1e-08,90580.0,90579.0,0.60472012]
[1765563528183,1e-08,90580.0,90579.0,0.62224012]
[1765563528827,1e-08,90580.0,90579.0,0.64738012]
[1765563529037,1e-08,90580.0,90579.0,0.6635676]
[1765563529263,1e-08,90580.0,90579.0,0.6460476]
[1765563529475,1e-08,90580.0,90579.0,0.6635676]
[1765563530105,1e-08,90580.0,90579.0,0.6460476]
[1765563530318,1e-08,90580.0,90579.0,0.6635676]
[1765563530524,1e-08,90580.0,90579.0,0.6685676]
[1765563530735,1e-08,90580.0,90579.0,0.6635676]
[1765563530946,1e-08,90580.0,90579.0,0.6645676]
[1765563531196,1e-08,90580.0,90579.0,0.6685676]
[1765563531394,1e-08,90580.0,90579.0,0.6675676]
[1765563531599,1e-08,90580.0,90579.0,0.6705676]
[1765563532050,1e-08,90580.0,90579.0,0.6530476]
[1765563532264,1e-08,90580.0,90579.0,0.6705676]
[1765563532659,1e-08,90580.0,90579.0,0.74867032]
[1765563533264,1e-08,90580.0,90579.0,0.6705676]
[1765563533409,1e-08,90580.0,90579.0,0.6665676]
[1765563533594,1e-08,90580.0,90579.0,0.6715676]
[1765563534204,1e-08,90580.0,90579.0,0.6510476]
[1765563534414,1e-08,90580.0,90579.0,0.60102921]
[1765563534615,1e-08,90580.0,90579.0,0.27400173]
[1765563534863,1e-08,90580.0,90579.0,0.23080173]
[1765563535073,1e-08,90580.0,90579.0,0.29152173]
[1765563535421,1e-08,90580.0,90579.0,0.28652173]
[1765563535634,1e-08,90580.0,90579.0,0.33654012]
[1765563535811,1e-08,90580.0,90579.0,0.28952173]
[1765563536050,1e-08,90580.0,90579.0,0.24632173]
[1765563536252,1e-08,90580.0,90579.0,0.28952173]
[1765563536457,1e-08,90580.0,90579.0,0.28452173]
[1765563536867,1e-08,90580.0,90579.0,0.28852173]
[1765563537076,1e-08,90580.0,90579.0,0.28152173]
[1765563537468,1e-08,90580.0,90579.0,0.28452173]
[1765563537810,1e-08,90580.0,90579.0,0.57522173]
[1765563538030,1e-08,90580.0,90579.0,0.57222173]
[1765563538428,1e-08,90580.0,90579.0,0.57722173]
[1765563539287,1e-08,90580.0,90579.0,0.57522173]
[1765563539670,1e-08,90580.0,90579.0,0.57222173]
[1765563540076,1e-08,90580.0,90579.0,0.57422173]
[1765563540733,1e-08,90580.0,90579.0,0.57522173]
[1765563540933,1e-08,90580.0,90579.0,0.57322173]
[1765563541079,1e-08,90580.0,90579.0,0.57422173]
[1765563541445,1e-08,90580.0,90579.0,0.53102173]
[1765563541642,0.07512001,90580.0,90579.0,0.004]
[1765563541783,0.07662152,90580.0,90579.0,0.02152]
[1765563541994,0.01104093,90572.0,90569.0,0.00038563]
[1765563542226,0.05458151,90570.0,90569.0,0.00038563]
[1765563542454,0.01104191,90564.0,90554.0,0.01104313]
[1765563542666,0.01104252,90559.0,90554.0,0.00038615]
[1765563542878,0.02998,90555.0,90554.0,0.00038615]
[1765563543103,0.03148151,90555.0,90554.0,0.00038615]
[1765563543313,0.07662151,90555.0,90554.0,0.00038615]
[1765563543513,0.07662151,90555.0,90554.0,0.04358615]
[1765563543714,0.01104008,90579.0,90568.0,0.22082854]
[1765563543855,0.01103996,90580.0,90568.0,0.22082854]
[1765563544062,0.07512,90569.0,90568.0,0.22082854]
[1765563544267,0.02998,90569.0,90568.0,0.22082854]
[1765563544487,0.07512,90569.0,90568.0,0.22082854]
[1765563544697,0.07662151,90569.0,90568.0,0.22082854]
[1765563545317,0.01104142,90568.0,90559.0,0.22084835]
[1765563545545,0.01104142,90568.0,90559.0,0.23189087]
[1765563545546,0.02998,90562.0,90559.0,0.23189087]
[1765563545752,0.02998,90560.0,90559.0,0.01752]
[1765563545987,0.02998,90560.0,90559.0,0.23837049]
[1765563546186,0.07512,90560.0,90559.0,0.22085049]
[1765563546585,0.00350151,90569.0,90568.0,0.22082854]
[1765563546869,0.07762151,90569.0,90568.0,0.22082854]
[1765563547081,0.07662151,90569.0,90568.0,0.22082854]
[1765563548119,0.07962151,90569.0,90568.0,0.22082854]
[1765563548536,0.003,90569.0,90568.0,0.22082854]
[1765563548739,0.003,90569.0,90568.0,0.26402854]
[1765563549676,0.002,90569.0,90568.0,0.26402854]
[1765563550134,0.002,90569.0,90568.0,0.26602854]
[1765563550273,0.0231,90584.0,90583.0,0.22079198]
[1765563550478,0.05308,90584.0,90583.0,0.23831198]
[1765563550714,0.09822,90584.0,90583.0,0.23831198]
[1765563551119,0.09822,90584.0,90583.0,0.28151198]
[1765563551536,0.09922,90584.0,90583.0,0.23869813]
[1765563551875,0.10022,90584.0,90583.0,0.23869813]
[1765563552212,0.10172151,90584.0,90583.0,0.23869813]
[1765563552799,0.01103996,90580.0,90574.0,0.01104069]
[1765563552970,0.01103959,90583.0,90568.0,0.22082821]
[1765563552971,0.04102081,90573.0,90568.0,0.22082821]
[1765563553184,0.00150151,90569.0,90568.0,0.00038683]
[1765563553360,0.05458151,90569.0,90568.0,0.00038683]
[1765563553546,0.09972151,90569.0,90568.0,0.00038683]
[1765563553751,0.09972151,90569.0,90568.0,0.22121537]
[1765563555088,0.10072151,90569.0,90568.0,0.22121537]
[1765563555786,0.10072151,90569.0,90568.0,0.00038683]
[1765563556742,0.10746513,90569.0,90568.0,0.00038683]
[1765563556943,0.32829124,90569.0,90568.0,0.00038683]
[1765563557158,0.32154762,90569.0,90568.0,0.00038683]
[1765563557357,0.10072151,90569.0,90568.0,0.00038683]
[1765563559313,0.09922,90569.0,90568.0,0.00038683]
[1765563559515,0.001,90569.0,90568.0,0.35636968]
[1765563559714,0.001,90569.0,90568.0,0.33428683]
[1765563560172,0.0231,90587.0,90586.0,0.0432]
[1765563560404,0.0231,90587.0,90586.0,0.28150466]
[1765563560553,0.00023753,90588.0,90587.0,0.0432]
[1765563561125,0.02826753,90588.0,90587.0,0.01752]
[1765563561643,0.00023753,90588.0,90587.0,0.01752]
[1765563562046,0.00023753,90588.0,90586.0,0.22078466]
[1765563562245,0.00023753,90588.0,90587.0,0.06072]
[1765563562445,0.00023753,90588.0,90587.0,0.01752]
[1765563562714,0.00023753,90588.0,90587.0,0.06072]
[1765563562864,0.00023753,90588.0,90587.0,0.01752]
[1765563563068,0.00023753,90588.0,90587.0,0.01852]
[1765563563262,0.00023753,90588.0,90587.0,0.06172]
[1765563563587,0.07381753,90588.0,90587.0,0.01752]
[1765563563784,0.07381753,90588.0,90587.0,0.01952]
[1765563563984,0.07381753,90588.0,90587.0,0.02052]
[1765563564144,0.07381753,90588.0,90587.0,0.01852]
[1765563564347,0.00023753,90588.0,90587.0,0.06172]
[1765563565152,0.00023753,90588.0,90587.0,0.11173839]
[1765563565552,0.00023753,90588.0,90587.0,0.01752]
[1765563565954,0.00023753,90588.0,90587.0,0.06172]
[1765563566154,0.00023753,90588.0,90587.0,0.06072]
[1765563566523,0.00023753,90588.0,90587.0,0.06172]
[1765563566799,0.00023753,90588.0,90587.0,0.11273839]
[1765563566956,0.00023753,90588.0,90587.0,0.06272]
[1765563567142,0.00023753,90588.0,90587.0,0.06172]
[1765563567498,0.00023753,90588.0,90587.0,0.06272]
[1765563568255,0.00023753,90588.0,90587.0,0.06172]
[1765563568605,0.00023753,90588.0,90587.0,0.06072]
[1765563568819,0.00023753,90588.0,90587.0,0.40143839]
[1765563569023,0.00023753,90588.0,90587.0,0.40343839]
[1765563569205,0.00023753,90588.0,90587.0,0.4622142]
[1765563569407,0.00023753,90588.0,90587.0,0.4446942]
[1765563569612,0.00023753,90588.0,90587.0,0.4456942]
[1765563569836,0.00023753,90588.0,90587.0,0.4612142]
[1765563570033,0.00023753,90588.0,90587.0,0.40343839]
[1765563570213,0.00023753,90588.0,90587.0,0.2927]
[1765563570423,0.00023753,90588.0,90587.0,0.35442]
[1765563571204,0.00023753,90588.0,90587.0,0.35342]
[1765563572299,0.00023753,90588.0,90587.0,0.35142]
[1765563572502,0.00023753,90588.0,90587.0,0.35242]
[1765563572642,0.00023753,90588.0,90587.0,0.40343839]
[1765563572832,0.00023753,90588.0,90587.0,0.40243839]
[1765563573034,0.00023753,90588.0,90587.0,0.40143839]
[1765563573299,0.00023753,90588.0,90587.0,0.40343839]
[1765563573495,0.00023753,90588.0,90587.0,0.40543839]
[1765563574009,0.03049753,90588.0,90587.0,0.2907]
[1765563574205,0.07381753,90588.0,90587.0,0.31022]
[1765563574381,0.03049753,90588.0,90587.0,0.31022]
[1765563574751,0.03049753,90588.0,90587.0,0.002]
[1765563574952,0.07381753,90588.0,90587.0,0.01952]
[1765563575386,0.07381753,90588.0,90587.0,0.002]
[1765563575387,0.08270079,90588.0,90587.0,0.002]
[1765563575587,0.07531904,90588.0,90585.0,0.01103935]
[1765563575828,0.00150151,90586.0,90584.0,0.23182827]
[1765563576020,0.00150151,90586.0,90584.0,0.23182891]
[1765563576231,0.07358,90585.0,90582.0,0.231834]
[1765563576475,0.04482151,90585.0,90583.0,0.22078972]
[1765563576683,0.01104008,90579.0,90567.0,0.22082945]
[1765563576897,0.0522,90569.0,90566.0,0.22083152]
[1765563577115,0.0522,90569.0,90568.0,0.23873537]
[1765563577289,0.09552,90569.0,90568.0,0.23873537]
[1765563577995,0.02194,90575.0,90568.0,0.23873537]
[1765563578193,0.04332,90591.0,90586.0,0.22078466]
[1765563578439,0.04332,90591.0,90587.0,0.01752]
[1765563578641,0.00674362,90598.0,90587.0,0.01752]
[1765563578850,0.0002,90600.0,90587.0,0.01752]
[1765563579057,0.0002,90600.0,90587.0,0.06072]
[1765563579264,0.04332,90598.0,90587.0,0.01752]
[1765563579639,0.04332,90598.0,90587.0,0.08279822]
[1765563579845,0.0002,90600.0,90587.0,0.08279822]
[1765563580192,0.04332,90597.0,90587.0,0.03959822]
[1765563580395,0.04332,90597.0,90587.0,0.04059822]
[1765563580781,0.04332,90597.0,90587.0,0.01852]
[1765563580948,0.02868362,90595.0,90587.0,0.01852]
[1765563581127,0.02194,90595.0,90587.0,0.01852]
[1765563581329,0.02194,90595.0,90587.0,0.01952]
[1765563582355,0.02194,90595.0,90586.0,0.22078466]
[1765563582556,0.02194,90595.0,90587.0,0.01752]
[1765563582756,0.04332,90593.0,90587.0,0.002]
[1765563582965,0.04332,90593.0,90587.0,0.01952]
[1765563583161,0.04332,90593.0,90587.0,0.01852]
[1765563583812,0.07381753,90588.0,90587.0,0.01852]
[1765563584022,0.07531904,90588.0,90587.0,0.01852]
[1765563584456,0.07531904,90588.0,90587.0,0.01952]
[1765563584644,0.07531904,90588.0,90587.0,0.002]
[1765563585447,0.07531904,90588.0,90587.0,0.001]
[1765563585644,0.29609883,90588.0,90587.0,0.001]
[1765563585852,0.07531904,90588.0,90587.0,0.001]
[1765563586022,0.01103947,90584.0,90579.0,0.22079943]
[1765563586221,0.03026,90581.0,90578.0,0.23184414]
[1765563586422,0.01104033,90577.0,90569.0,0.0110413]
[1765563586688,0.01104033,90577.0,90570.0,0.01752]
[1765563586689,0.23186229,90571.0,90570.0,0.01752]
[1765563586924,0.27302611,90569.0,90568.0,0.00038683]
[1765563587131,0.27452762,90569.0,90568.0,0.00038683]
[1765563587335,0.23188127,90564.0,90558.0,0.01752]
[1765563587538,0.01104179,90565.0,90561.0,0.01104228]
[1765563587743,0.04332,90564.0,90562.0,0.01104215]
[1765563587950,0.03026,90562.0,90561.0,0.01104228]
[1765563588358,0.07358,90562.0,90561.0,0.01104228]
[1765563589299,0.07358,90562.0,90559.0,0.01104252]
[1765563589503,0.03026,90560.0,90558.0,0.00038724]
[1765563589702,0.25111049,90559.0,90558.0,0.00038724]
[1765563589975,0.33763049,90559.0,90558.0,0.00038724]
[1765563590149,1.33763049,90559.0,90558.0,0.00038724]
[1765563591019,0.53233049,90559.0,90558.0,0.00038724]
[1765563591223,0.07358,90559.0,90558.0,0.00038724]
[1765563591425,0.07358,90559.0,90558.0,0.22124017]
[1765563593319,0.07558,90559.0,90558.0,0.00038724]
[1765563593543,0.30619686,90559.0,90558.0,0.00038724]
[1765563593750,0.30419686,90559.0,90558.0,0.00038724]
[1765563593954,0.34739686,90559.0,90558.0,0.00038724]
[1765563594549,0.30419686,90559.0,90558.0,0.00038724]
[1765563594927,0.30619686,90559.0,90558.0,0.00038724]
[1765563595362,0.34939686,90559.0,90558.0,0.00038724]
[1765563595556,1.30619686,90559.0,90558.0,0.00038724]
[1765563595761,1.34939686,90559.0,90558.0,0.00038724]
[1765563596169,0.34939686,90559.0,90558.0,0.00038724]
[1765563596345,0.34739686,90559.0,90558.0,0.00038724]
[1765563596735,0.29643049,90559.0,90558.0,0.00038724]
[1765563597143,0.29443049,90559.0,90558.0,0.00038724]
[1765563597570,0.29643049,90559.0,90558.0,0.00038724]
[1765563597987,0.29443049,90559.0,90558.0,0.00038724]
[1765563599526,0.29643049,90559.0,90558.0,0.00038724]
[1765563599741,0.37897839,90559.0,90558.0,0.00038724]
[1765563600089,0.42217839,90559.0,90558.0,0.00038724]
[1765563600713,1.71287839,90559.0,90558.0,0.00038724]
[1765563600931,1.71287839,90559.0,90511.0,0.01104838]
[1765563600932,0.01104728,90520.0,90511.0,0.01104838]
[1765563601130,0.01104764,90517.0,90512.0,0.02860825]
[1765563601354,0.04192,90519.0,90512.0,0.02860825]
[1765563601566,0.01104764,90517.0,90511.0,0.00038747]
[1765563601774,0.02827,90512.0,90511.0,0.00038747]
[1765563602199,0.07019,90512.0,90511.0,0.00038747]
[1765563603260,0.07019,90512.0,90490.0,0.0004]
[1765563603261,0.01105057,90493.0,90490.0,0.0004]
[1765563603483,0.22104088,90481.0,90476.0,0.00355619]
[1765563603715,0.24931088,90481.0,90476.0,0.00355619]
[1765563603930,0.24931088,90481.0,90464.0,0.01105412]
[1765563603931,0.01105326,90471.0,90467.0,0.01105375]
[1765563604139,0.04192,90470.0,90467.0,0.01105375]
[1765563604354,0.04192,90470.0,90460.0,0.0114546]
[1765563604355,0.01105412,90464.0,90460.0,0.0114546]
[1765563604565,0.02827,90461.0,90460.0,0.0004]
[1765563604989,0.07169151,90461.0,90460.0,0.0004]
[1765563605406,0.11489151,90461.0,90460.0,0.0004]
[1765563605624,0.11527759,90461.0,90460.0,0.0004]
[1765563606286,0.07207759,90461.0,90460.0,0.0004]
[1765563608703,0.11527759,90461.0,90460.0,0.0004]
[1765563609304,0.11527759,90461.0,90460.0,0.00032449]
[1765563609889,0.07207759,90461.0,90460.0,0.00032449]
[1765563610091,0.07207759,90461.0,90460.0,0.22141668]
[1765563610300,0.07207759,90461.0,90460.0,0.22189272]
[1765563610795,0.07207759,90461.0,90460.0,0.00080053]
[1765563611854,0.10780808,90461.0,90460.0,0.00080053]
[1765563612013,0.10780808,90461.0,90447.0,0.01105619]
[1765563612014,0.0432,90460.0,90447.0,0.01105619]
[1765563612215,0.01105558,90452.0,90446.0,0.01105632]
[1765563612415,0.23217598,90449.0,90441.0,0.01105693]
[1765563612643,0.02827,90442.0,90439.0,0.01105717]
[1765563612845,0.02827,90440.0,90437.0,0.02861742]
[1765563613200,0.04192,90441.0,90438.0,0.23220326]
[1765563613330,0.01105607,90448.0,90442.0,0.0110568]
[1765563613536,0.01105595,90449.0,90446.0,0.01105632]
[1765563613772,0.01105595,90449.0,90445.0,0.01105644]
[1765563613982,0.01105668,90443.0,90440.0,0.01105705]
[1765563614207,0.02827,90440.0,90438.0,0.22114486]
[1765563614405,0.02827,90440.0,90437.0,0.01205742]
[1765563614406,0.02827,90440.0,90437.0,0.01105742]
[1765563614731,0.0482,90438.0,90437.0,0.01105742]
[1765563615067,0.09012,90438.0,90437.0,0.01205742]
[1765563615268,0.09012,90438.0,90437.0,0.001]
[1765563615464,0.01105754,90436.0,90430.0,0.01145827]
[1765563615662,0.02827,90431.0,90430.0,0.0004]
[1765563616085,0.07019,90431.0,90430.0,0.0004]
[1765563616725,0.29135309,90431.0,90430.0,0.0004]
[1765563616912,0.29173893,90431.0,90430.0,0.0014]
[1765563617115,0.29173893,90431.0,90430.0,0.0004]
[1765563617318,0.07057584,90431.0,90430.0,0.0004]
[1765563618355,0.33493893,90431.0,90430.0,0.0004]
[1765563618791,0.33493893,90431.0,90430.0,0.00129294]
[1765563619007,0.29173893,90431.0,90430.0,0.00129294]
[1765563619217,0.33593893,90431.0,90430.0,0.00129294]
[1765563619413,0.33693893,90431.0,90430.0,0.00129294]
[1765563619622,0.29273893,90431.0,90430.0,0.00129294]
[1765563619859,0.33702415,90431.0,90430.0,0.00129294]
[1765563620070,0.33802415,90431.0,90430.0,0.00129294]
[1765563620276,0.29373893,90431.0,90430.0,0.00129294]
[1765563620859,0.07257584,90431.0,90430.0,0.00129294]
[1765563621506,0.33693893,90431.0,90430.0,0.00129294]
[1765563621930,1.33693893,90431.0,90430.0,0.00129294]
[1765563622056,1.26438755,90421.0,90420.0,0.0004]
[1765563622262,0.26441202,90411.0,90410.0,0.0004]
[1765563622496,0.01106414,90382.0,90373.0,0.01106525]
[1765563622694,0.05045427,90381.0,90376.0,0.01106488]
[1765563623023,0.03939,90381.0,90378.0,0.01106463]
[1765563623206,0.03939,90380.0,90379.0,0.23235485]
[1765563623420,0.03939,90381.0,90379.0,0.23235485]
[1765563623629,0.02559,90380.0,90379.0,0.23235485]
[1765563624370,0.06498,90380.0,90379.0,0.23235485]
[1765563624585,0.06498,90380.0,90379.0,0.23435485]
[1765563624716,0.06498,90380.0,90379.0,0.23235485]
[1765563625326,0.00038536,90381.0,90379.0,0.23235485]
[1765563625535,0.00038536,90381.0,90380.0,0.02212878]
[1765563625741,0.00038536,90381.0,90380.0,0.06532878]
[1765563625945,0.00038536,90381.0,90380.0,0.02212878]
[1765563626162,0.00038536,90381.0,90380.0,0.06532878]
[1765563626404,0.00038536,90381.0,90380.0,0.03968878]
[1765563626610,0.06536536,90381.0,90380.0,0.01756]
[1765563627222,0.06536536,90381.0,90380.0,0.01956]
[1765563627471,0.00038536,90381.0,90380.0,0.01956]
[1765563627805,0.00038536,90381.0,90380.0,0.0210493]
[1765563628102,0.00038536,90381.0,90380.0,0.08637808]
[1765563628838,0.00038536,90381.0,90380.0,0.08837808]
[1765563628985,0.00038536,90381.0,90380.0,0.42909647]
[1765563629193,0.01992,90417.0,90416.0,0.22119978]
[1765563629392,0.01992,90417.0,90416.0,0.22124263]
[1765563629602,0.71681376,90460.0,90429.0,0.01105839]
[1765563629796,0.01105693,90441.0,90430.0,0.22116443]
[1765563630008,0.03939,90431.0,90430.0,0.22116443]
[1765563630335,0.06498,90431.0,90430.0,0.22116443]
[1765563630542,0.05931,90464.0,90462.0,0.2210873]
[1765563631155,0.01992,90464.0,90462.0,0.2210873]
[1765563631377,0.06498,90463.0,90462.0,0.2210873]
[1765563631777,0.06498,90463.0,90462.0,0.22113015]
[1765563634197,0.05931,90474.0,90473.0,0.22106042]
[1765563634638,0.0849,90474.0,90473.0,0.22106042]
[1765563637315,0.0849,90474.0,90471.0,0.23211718]
[1765563637495,0.02559,90472.0,90471.0,0.23211718]
[1765563637857,0.06498,90472.0,90471.0,0.23211718]
[1765563638260,0.06498,90472.0,90469.0,0.01105351]
[1765563638483,0.01105314,90472.0,90469.0,0.01105351]
[1765563638827,0.01105302,90473.0,90469.0,0.01105351]
[1765563638828,0.02559,90470.0,90469.0,0.01105351]
[1765563639235,0.06498,90470.0,90469.0,0.01105351]
[1765563639466,0.06498,90470.0,90468.0,0.01756]
[1765563639646,0.06498,90469.0,90468.0,0.01756]
[1765563640658,0.01105375,90467.0,90462.0,4.285e-05]
[1765563640811,0.04551,90463.0,90462.0,4.285e-05]
[1765563641267,0.0849,90463.0,90462.0,4.285e-05]
[1765563643353,0.03939,90476.0,90473.0,0.22106042]
[1765563643557,0.2475,90478.0,90475.0,0.01105277]
[1765563643932,0.2475,90478.0,90476.0,0.22105309]
[1765563644347,0.2475,90478.0,90475.0,0.01105277]
[1765563644530,0.02559,90476.0,90475.0,0.01105277]
[1765563644930,0.06498,90476.0,90475.0,0.23210831]
[1765563645482,0.02559,90476.0,90475.0,0.23210831]